Cogmind - Beta 10.2 @@@ ROGUE MODE // 2021.03.07 @ 11:13:07 Player: MoonDog Result: Self-destructed Performance ------------- Evolutions (1) 500 Regions Visited (2) 400 Robots Destroyed (8) 40 Value Destroyed (278) 278 Prototype IDs (1) 20 Alien Tech Used (0) 0 Bonus (0) 0 TOTAL SCORE: 1238 Bonus ------- None Cogmind --------- Core Integrity 109/400 Matter 278/300 Energy 99/100 System Corruption 0% Temperature Cool (0) Movement Core (50) Location -9/Materials Parts ------- > --- POWER (1) -------- (None) > --- PROPULSION (2) --- (None) > --- UTILITY (4) ------ Targeting Computer > --- WEAPON (2) ------- Shotgun > --- INVENTORY (4) ---- Improved Targeting Computer Light EM Pulse Cannon Rocket Launcher Rocket Launcher Peak State ------------ > --- POWER ------------ Ion Engine > --- PROPULSION ------- Improved Flight Unit Improved Flight Unit > --- UTILITY ---------- Small Storage Unit Targeting Computer Targeting Computer Targeting Computer > --- WEAPON ----------- Plasma Cutter Plasma Cutter > --- INVENTORY -------- Improved Flight Unit Improved Flight Unit Shotgun Shotgun Rocket Launcher [Rating: 16] Favorites ----------- Power Ion Engine Engine Ion Engine Propulsion Improved Flight Unit Wheel Wheel Flight Unit Improved Flight Unit Utility Targeting Computer Device Sensor Array Storage Small Storage Unit Processor Targeting Computer Hackware Hacking Suite Weapon Plasma Cutter Ballistic Gun Shotgun Launcher Grenade Launcher Special Weapon Plasma Cutter Build | -11 -10 -9 ------- Run | Scr Mat Mat Slots Evolved 2 | . . 2 Power . | . . . Propulsion . | . . . Utility 2 | . . 2 Weapon . | . . . Parts Attached 25 | 3 9 13 Power 1 | . 1 . Engine 1 | . 1 . Core . | . . . Reactor . | . . . Propulsion 9 | 2 2 5 Treads . | . . . Leg . | . . . Wheel 2 | 2 . . Hover . | . . . Flight 7 | . 2 5 Utility 7 | . 3 4 Device 1 | . . 1 Storage 1 | . 1 . Processor 4 | . 2 2 Hackware 1 | . . 1 Protection . | . . . Artifact . | . . . Weapon 8 | 1 3 4 Energy Gun . | . . . Energy Cannon . | . . . Ballistic Gun 4 | 1 2 1 Ballistic Cannon . | . . . Launcher 1 | . 1 . Special Weapon 3 | . . 3 Impact Weapon . | . . . Slashing Weapon . | . . . Piercing Weapon . | . . . Special Melee Weapon . | . . . Unidentified Prototypes 1 | . 1 . Parts Lost 9 | . . 9 Power 1 | . . 1 Propulsion 4 | . . 4 Utility 2 | . . 2 Weapon 2 | . . 2 Highest Loss Streak 8 | . . 8 Average Slot Usage (%) 79 | . 70 84 Engine 8 | . 8 9 Wheel 3 | . 10 . Flight 17 | . 16 18 Device 4 | . . 7 Storage 8 | . 8 9 Processor 17 | . 12 20 Hackware 1 | . . 2 Ballistic Gun 4 | . 10 1 Launcher 1 | . 3 . Special Weapon 9 | . . 15 Naked Turns . | . . . Heaviest Build 15 | 1 15 12 Greatest Support 12 | 3 12 12 Greatest Overweight (x) 2 | . 2 1 Average Overweight (x) . | . . . Largest Inventory Capacity 6 | 4 6 6 Average Capacity 5 | 4 5 5 Most Carried 6 | 4 6 6 Average Carried 5 | 2 4 5 Final Capacity 6 | 4 6 4 Final Carried 6 | 4 6 4 Class Distribution -------------------- 59% | Sprinter 40% | Mutant Dominant Class ---------------- Mutant | -10/Materials Sprinter | -9/Materials Resources | -11 -10 -9 ----------- Run | Scr Mat Mat Matter Collected 417 | 127 113 177 Remotely . | . . . Salvage Created 301 | . 74 227 Parts 23 | . 3 20 Haulers Intercepted . | . . . Recyclers Shooed . | . . . Parts Field Recycled . | . . . Retrieved Matter . | . . . Parts Self-Destructed . | . . . Prevented . | . . . Kills | -11 -10 -9 ------- Run | Scr Mat Mat Combat Hostiles Destroyed 7 | . 3 4 Guns 1 | . 1 . Cannons 4 | . . 4 AOE 2 | . 2 . Classes Destroyed 3 | . 1 2 Operator 1 | . . 1 Grunt 6 | . 3 3 Sentry 1 | . . 1 Best Kill Streak 3 | . 2 3 Combat Bots Only 3 | . 2 3 Max Kills in Single Turn 2 | . 2 1 Gunslinging . | . . . Exploded 2 | . 2 . Melee . | . . . Uniques/NPCs Destroyed . | . . . Combat | -11 -10 -9 -------- Run | Scr Mat Mat Damage Taken 764 | . 66 698 Core 302 | . 11 291 Absorbed by Shields . | . . . Core Remaining (%) 97 | 100 95 . Volleys Fired 23 | . 7 16 Largest 2 | . 2 2 Hottest 46 | . 46 40 Shots Fired 32 | . 9 23 Gun 8 | . 6 2 Cannon . | . . . Launcher 3 | . 3 . Special 21 | . . 21 Kinetic 8 | . 6 2 Thermal 21 | . . 21 Explosive 3 | . 3 . Electromagnetic . | . . . Robot Hit Streak 14 | . 5 14 Robot Miss Streak 4 | . 3 4 Penetration Max . | . . . Secondary Targets . | . . . Shots Hit Robots 24 | . 6 18 Core Hits 19 | . 6 13 Critical Hits 2 | . . 2 Critical Kills 1 | . . 1 Critical Parts Destroyed 1 | . . 1 Melee Attacks . | . . . Impact . | . . . Slashing . | . . . Piercing . | . . . Sneak Attacks . | . . . Combat Hostiles . | . . . Follow-up Attacks . | . . . Damage Inflicted 503 | . 267 236 Guns 78 | . 56 22 Cannons . | . . . Explosions 211 | . 211 . Melee . | . . . Ramming 27 | . . 27 Kinetic 78 | . 56 22 Thermal 187 | . . 187 Explosive 211 | . 211 . Electromagnetic . | . . . Impact . | . . . Slashing . | . . . Piercing . | . . . Highest Corruption . | . . . Average Corruption . | . . . Corruption Purged . | . . . Overload Shots . | . . . Overflow Damage . | . . . Projectiles . | . . . Explosions . | . . . Melee . | . . . Knockbacks . | . . . Impact . | . . . Kinetic . | . . . Secondary . | . . . Self-Inflicted Damage 12 | . . 12 Shots . | . . . Rammed 7 | . . 7 Targets Rammed 7 | . . 7 Kicked . | . . . Crushed . | . . . Highest Temperature 14 | . 14 . Average Temperature 7 | . 7 . Received Heat Transfer 225 | . 30 195 Siege Activations . | . . . Robots Corrupted . | . . . Combat Hostiles . | . . . Parts Fried . | . . . Impact Corruptions . | . . . Robots Melted . | . . . Combat Hostiles . | . . . Parts Melted 1 | . . 1 Heat Transferred 629 | . . 629 Parts Sabotaged . | . . . Parts Stolen . | . . . Parts Stripped . | . . . Power Chain Reactions . | . . . Missiles Intercepted . | . . . Alert | -11 -10 -9 ------- Run | Scr Mat Mat Peak Influence 316 | . 125 316 Initial 11 | . . 11 Average 92 | . 42 127 Maximum Alert Level 1 | . . 1 Low Security (%) 93 | 100 100 89 Level 1 6 | . . 10 Level 2 . | . . . Level 3 . | . . . Level 4 . | . . . Level 5 . | . . . High Security . | . . . Max Security . | . . . Squads Dispatched 4 | . 1 3 Investigation 3 | . 1 2 Extermination . | . . . Reinforcement 1 | . . 1 Assault . | . . . Garrison . | . . . Intercept . | . . . Construction Impeded . | . . . Haulers Reinforced . | . . . Stealth | -11 -10 -9 --------- Run | Scr Mat Mat Distress Signals . | . . . Communications Jammed . | . . . Distress Signals . | . . . Times Spotted 32 | . 9 23 Peak Tracking Total 13 | . 4 13 Tactical Retreats 3 | . . 3 Traps | -11 -10 -9 ------- Run | Scr Mat Mat Traps Triggered 1 | . 1 . Indirectly . | . . . Trap Hack Attempts . | . . . Triggered . | . . . Disarmed . | . . . Reprogrammed . | . . . Reused . | . . . Traps Extracted . | . . . Installed . | . . . Triggered . | . . . Machines | -11 -10 -9 ---------- Run | Scr Mat Mat Machines Disabled . | . . . Max in Single Turn . | . . . Machines Sabotaged . | . . . Garrisons Compromised . | . . . Overloaded Fab Kills . | . . . Fab Network Shutdowns . | . . . Hacking | -11 -10 -9 --------- Run | Scr Mat Mat Machines Accessed 6 | . 2 4 Terminals 6 | . 2 4 Fabricators . | . . . Repair Stations . | . . . Recycling Units . | . . . Scanalyzers . | . . . Garrison Access . | . . . Total Hacks 22 | . 8 14 Successful 11 | . 5 6 Failed 11 | . 3 8 Catastrophic . | . . . Database Lockouts . | . . . Manual 21 | . 7 14 Terminals 22 | . 8 14 Fabricators . | . . . Repair Stations . | . . . Recycling Units . | . . . Scanalyzers . | . . . Garrison Access . | . . . Terminal Hacks 5 | . 3 2 Terminal Index 2 | . 1 1 Unreport Threat 1 | . 1 . Security Status 1 | . . 1 Recall Investigation 1 | . 1 . Fabricator Hacks . | . . . Repair Station Hacks . | . . . Recycling Unit Hacks . | . . . Scanalyzer . | . . . Garrison Access Hacks . | . . . Unauthorized Hacks 6 | . 2 4 Terminals 6 | . 2 4 Assimilate 1 | . . 1 Botnet 5 | . 2 3 Fabricators . | . . . Repair Stations . | . . . Recycling Units . | . . . Scanalyzers . | . . . Garrison Access . | . . . Data Cores Recovered . | . . . Used . | . . . Hacking Detections 6 | . 2 4 Full Trace Events 2 | . . 2 Feedback Events . | . . . Feedback Blocked . | . . . Robot Schematics Acquired . | . . . Robots Built . | . . . Matter . | . . . Time . | . . . Total Robot Build Rating . | . . . Part Schematics Acquired . | . . . Parts Built . | . . . Matter . | . . . Time . | . . . Total Part Build Rating . | . . . Parts Repaired . | . . . Time . | . . . Parts Recycled . | . . . Recycled Matter . | . . . Retrieved Matter . | . . . Retrieved Components . | . . . Parts Scanalyzed . | . . . Part Schematics Acquired . | . . . Parts Damaged . | . . . Bothacking | -11 -10 -9 ------------ Run | Scr Mat Mat Used RIF Installer . | . . . Robots Hacked . | . . . Non-combat . | . . . Combat . | . . . Robot Hacks Applied . | . . . Relay Couplers Released . | . . . Robots Rewired . | . . . Allies Hacked . | . . . Hacks Repelled . | . . . Allies | -11 -10 -9 -------- Run | Scr Mat Mat Total Allies 1 | . . 1 Largest Group 1 | . . 1 Highest-Rated Group 10 | . . 10 Highest-Rated Ally 10 | . . 10 Total Orders 6 | . . 6 STAY 3 | . . 3 FOLLOW 3 | . . 3 Ally Attacks . | . . . Total Damage . | . . . Kills . | . . . Allies Corrupted . | . . . Allies Melted . | . . . Intel | -11 -10 -9 ------- Run | Scr Mat Mat Robot Analysis Total . | . . . Derelict Logs Recovered . | . . . Drone Launches . | . . . Drone Recoveries . | . . . Exploration | -11 -10 -9 ------------- Run | Scr Mat Mat Turns Passed 541 | 23 188 330 Spaces Moved 577 | 29 205 343 Core 171 | 29 81 61 Treads . | . . . Legs . | . . . Wheels . | . . . Hover . | . . . Flight 406 | . 124 282 Fastest Speed 32 | 50 32 32 Average Speed 39 | 50 40 37 Slowest Speed 150 | 50 150 120 Overloaded Moves . | . . . Propulsion Burnouts . | . . . Robots Hopped 4 | . . 4 Cave-ins Triggered . | . . . Exploration Rate (%) 25 | 3 38 35 Regions Visited 2 Branch Regions . Pre-discovered Areas . | . . . Known Exits Taken . | . . . Unknown Exits Taken 2 | 1 1 . Scrap Searched . | . . . Spaces Dug . | . . . Terrain Destroyed 17 | . 17 . Melee . | . . . Projectile . | . . . AOE 17 | . 17 . Terrain Rammed . | . . . Walls Destroyed . | . . . Machines Disabled . | . . . Actions | -11 -10 -9 --------- Run | Scr Mat Mat Total 834 | 35 300 499 Wait 172 | . 67 105 Move 568 | 28 204 336 Hop 3 | . . 3 Pick Up 16 | 4 5 7 Fast Attach 16 | 3 6 7 Attach 9 | . 3 6 Detach 6 | . 3 3 Swap . | . . . Drop 14 | . 5 9 Fire 23 | . 7 16 Melee . | . . . Ram 7 | . . 7 Kick . | . . . Crush . | . . . Escape Stasis . | . . . Rewire . | . . . Trap . | . . . Miscellaneous . | . . . Route ------- -11/Scrapyard -10/Materials (discovered 2 exits: *Mat / [*Min]) -9/Materials History --------- Turn | Location | Event 17 | -11/Scrapyard | Discovered new exit (range 14) 24 | -11/Scrapyard | Entered Materials 141 | -10/Materials | Discovered new exit (range 14) 210 | -10/Materials | Discovered new exit (range 6) 212 | -10/Materials | Entered another Materials area 212 | -9/Materials | Evolved 2 slots: Utility x2 446 | -9/Materials | Build established: Sprinter 519 | -9/Materials | Core integrity fell below 50% 542 | -9/Materials | Self-destructed Last Messages --------------- 00494_ Cesium-ion Thruster destroyed. 00504_ O-16 Technician: "IFF HANDSHAKE FAILED. SECURING TERMINAL." 00509_ O-16 Technician uses terminal to summon reinforcements. 00509_ ALERT: Hostiles spotted, dispatching reinforcements to Terminal M009. 00509_ O-16 Technician locks terminal. 00511_ O-16 Technician destroyed. 00513_ Acquired 17 matter. 00519_ Cesium-ion Thruster destroyed. 00522_ Acquired Imp. Targeting Computer. 00525_ Acquired Lgt. EM Pulse Cannon. 00528_ Slammed into S-10 Pest. 00530_ Destabilizing: System interference. 00530_ Targeting Computer temporarily disabled. 00534_ Connecting with Terminal... 00534_ ALERT: Suspicious activity at Terminal M008. Dispatching Investigation squad. 00536_ Slammed into S-10 Pest. 00539_ Hacking Suite destroyed. 00539_ Slammed into S-10 Pest. Map ----- +----------------------------------------------------+ | | | | | | | | | | | | | | | | | | | | | | | | | | | | | | | | | | | ?????????????????????###################??? | | ?????????????????????# # ?? | | ?????????????????????# # """ """ ?? | | ?????????????????????# #"" """ """ #? | | ?????????????????????# #"T """ """ #? | | ?????????????????????# #"" #? | | ?????????????????????# # #? | | ?????????????????????####/####+##########?? | | ??????????????????????# @ ss #????????? | | ??????????????????????# s #????????? | | ??????????????????????# ############?????? | | ??????????????????????# # !!! #????? | | ????????????????????? + + !!! """??????? | | ???????????????????? #g # !! """??????? | | ???????????????????" # #?? """??????? | | ??????????????????"" ?# #???? """??????? | | ??????????????????" ?# #?????? ""???????? | | ??????????????????##??# #???????? ??????? | | ??????????????????????# #????????????????? | | ?????????????????????## ##???????????????? | | ?????????????????????# =#???????????????? | | ?????????????????????+ #????????#??????? | | ?????????????????????# T #???#### #??????? | | ?????????????????????# /#?? +??????? | | ????????????????+#???## ##? #??????? | | ???????????????# #????# ### #??????? | | ???????????????# ###### +??????? | | ???????????????# # # ###??????????? | | ???????????????# # # #????????????? | | ???????????????# # # #????????????? | | ???????????????# # # #????????????? | | ????????######## # + #????????????? | | ????????# [ # # #???????????? | +----------------------------------------------------+ Best States ------------- Heat Dissipation 28 Energy Generation 10 Energy Capacity 250 Matter Stores 278 Matter Capacity 300 Sight Range 16 Robot Scan Range 10 Terrain Scan Density 10 Evasion (%) 63 Targeting Accuracy 15 Offensive Hacking 10 Item Schematics ----------------- None Robot Schematics ------------------ None Fabricated ------------ Nothing Alien Tech Used ----------------- None Achievements -------------- None Challenges ------------ None Game ------ Seed EtherialNeutrinoInterpreter Manual? 0 Play Time 00:13:17 Cumulative 110.8 hours Start 2021.03.07 @ 11:01:42 End 2021.03.07 @ 11:13:07 Sessions 1 Manual Loads 0 Difficulty Rogue Special Mode None Game No. 84 Rogue 84 Adventurer 0 Explorer 0 Win Type - Total 1 Types 1/0/0/0/0/0/0/0/0 Lore% 40 Gallery% 57 Achievement% 45 Wizard Run 0 Options --------- ASCII 0 Keyboard 0 Movement Numpad Keybinds 0 Fullscreen 0 Font 16/SmallcapsGlow Map View 76x50 Tactical HUD 1 Map Filters NONE Filters NONE Steam 1 RUN: fd818372-670e-44e7-8b82-6f2da0d8ff31